Workbook

Sheet Bắt đầu
B1: GIỚI THIỆU VỀ MẪU NÀY
B2: Sử dụng trang tính ngân sách đại học hàng tháng để theo dõi thu nhập, chi phí và dòng tiền.
B3: Nhập thu nhập hàng tháng và chi phí để tính tổng thu nhập và chi phí.
B4: Dòng tiền sẽ được tự động tính toán và biểu đồ dòng tiền sẽ được cập nhật cho bạn.
B5: Chọn con trượt để nhận thu nhập, chi phí và biểu đồ dòng tiền cho một tháng và năm.
B6: Lưu ý:
B7: Hướng dẫn bổ sung được cung cấp ở cột A trong trang tính. Văn bản này được cố ý ẩn đi. Để loại bỏ văn bản, chọn cột A, rồi chọn XÓA. Để bỏ ẩn văn bản, chọn cột A, rồi thay đổi màu phông chữ.

Sheet Ngân sách đại học hàng tháng
A1: Tạo ngân sách đại học hàng tháng trong sổ làm việc này. Tiêu đề của trang tính này nằm trong ô bên phải và ô B1. Hướng dẫn hữu ích về cách sử dụng trang tính này nằm ở các ô trong cột này. Hướng dẫn tiếp theo nằm trong ô A4. | B1: Ngân sách đại học hàng tháng
A4: Nhãn Thu nhập nằm trong ô bên phải và nhãn Chi phí nằm trong ô E4 và nhãn Dòng tiền nằm trong ô M4. | B4: =chart_calcs!$D$6 -> thu nhập năm: | G4: =chart_calcs!$D$7 -> chi phí năm: | M4: =chart_calcs!$D$8 -> dòng tiền năm:
A5: Thu nhập sẽ tự động được cập nhật trong ô ở bên phải, chi phí nằm trong ô E5 và dòng tiền nằm trong ô M5. | B5: =" "&chart_calcs!$F$6 ->  | G5: =" "&chart_calcs!$F$7 ->  | M5: =" "&chart_calcs!$F$8 -> 169.0 ₫
A6: Biểu đồ vành khuyên hiển thị tóm tắt thu nhập trong ô bên phải, tóm tắt chi phí trong ô E6 và biểu đồ thanh hiển thị dòng tiền dương và âm trong ô M6 sẽ tự động được cập nhật. Hướng dẫn tiếp theo nằm trong ô A17. | B6: Biểu đồ vành khuyên hiển thị tóm tắt thu nhập cho tháng hoặc năm đã chọn trong ô này. | E6: Biểu đồ vành khuyên hiển thị tóm tắt chi phí cho tháng hoặc năm đã chọn trong ô này. | M6: Biểu đồ thanh hiển thị dòng tiền dương và âm cho tháng hoặc năm đã chọn trong ô này.
B16: Biểu đồ đường hiển thị dòng tiền cho tháng hoặc năm đã chọn trong ô này.
A17: Biểu đồ đường dòng tiền nằm trong ô bên phải. Hướng dẫn tiếp theo nằm trong ô A21.
A21: Chọn con trượt ở bên phải để nhận các biểu đồ và dữ liệu về Thu nhập, Chi phí hàng tháng hoặc hàng năm. Hướng dẫn tiếp theo nằm trong ô A25. | B21: Con trượt nằm trong ô này.
A25: Chọn Tháng trong ô bên phải. Nhấn ALT+MŨI TÊN XUỐNG để xem các tùy chọn, rồi nhấn MŨI TÊN XUỐNG và ENTER để chọn. | B25: THÁNG HAI
A26: Khoảng thời gian đã chọn sẽ tự động được cập nhật trong ô P26. | P26: =SelectedPeriod -> 
A27: Các nhãn đều nằm trong hàng này, nhãn Tiền mặt hàng tháng sau khi trừ chi phí nằm trong ô bên phải, tháng nằm trong các ô từ C27 đến N27, Năm nằm trong ô O27 và phần trăm tăng nằm trong ô P27. | B27: Tiền mặt hàng tháng sau khi trừ chi phí | C27: =FirstMonth ->  | D27: =NextMonth ->  | O27: NĂM | P27: % INC
A28: Nhãn Dòng tiền nằm trong ô ở bên phải. Dòng tiền cho mỗi tháng sẽ được tự động tính toán trong các ô từ C28 tới N28, số tiền hàng năm nằm trong ô O28 và phần trăm tăng nằm trong ô P28. Biểu đồ thu nhỏ được tự động cập nhật trong ô Q28. | B28: Dòng tiền | C28: =C37-C72 -> 169 | D28: 69 | E28: 192 | F28: 199 | G28: 204 | H28: -771 | I28: 124 | J28: 154 | K28: -721 | L28: 109 | M28: 34 | N28: -61 | O28: =SUM(C28:N28) -> -299 | P28: =INDEX($C28:$O28,,SelectedPeriodColumn)/INDEX($C$37:$O$37,,SelectedPeriodColumn) -> 
A29: Nhãn Dòng tiền tích lũy nằm trong ô ở bên phải. Dòng tiền tích lũy cho mỗi tháng sẽ được tự động tính toán trong các ô từ C29 tới N29, số tiền hàng năm nằm trong ô O29 và phần trăm tăng nằm trong ô P29. Biểu đồ thu nhỏ được cập nhật tự động trong ô Q29. Hướng dẫn tiếp theo nằm trong ô A31. | B29: Dòng tiền tích lũy | C29: =SUM($C$28:C$28) -> 169 | D29: =SUM($C$28:D$28) -> 238 | E29: =SUM($C$28:E$28) -> 430 | F29: =SUM($C$28:F$28) -> 629 | G29: =SUM($C$28:G$28) -> 833 | H29: =SUM($C$28:H$28) -> 62 | I29: =SUM($C$28:I$28) -> 186 | J29: =SUM($C$28:J$28) -> 340 | K29: =SUM($C$28:K$28) -> -381 | L29: =SUM($C$28:L$28) -> -272 | M29: =SUM($C$28:M$28) -> -238 | N29: =SUM($C$28:N$28) -> -299
A31: Nhãn thu nhập hàng tháng nằm trong ô bên phải, tháng trong các ô từ C31 đến N31, Năm nằm trong ô O31 và nhãn phần trăm tăng nằm trong ô P31. Nhập các mục thu nhập hàng tháng trong các ô từ B32đến B36 và số tiền hàng tháng trong các ô từ C32 đến N36. Thu nhập hàng năm sẽ được tự động tính toán trong các ô từ O32 tới O36 và phần trăm tăng nằm trong các ô từ P32 đến P36. Hướng dẫn tiếp theo nằm trong ô A37. | B31: THU NHẬP HÀNG THÁNG | C31: =FirstMonth ->  | D31: =NextMonth ->  | O31: NĂM | P31: % INC
B32: Hỗ trợ tài chính (tài trợ, học bổng, cho vay) trả cho bạn | C32: 0 | D32: 0 | E32: 750 | F32: 750 | G32: 750 | H32: 750 | I32: 750 | J32: 750 | K32: 750 | L32: 750 | M32: 750 | N32: 750 | O32: =SUM(C32:N32) -> 7500 | P32: =INDEX($C32:$O32,,SelectedPeriodColumn)/INDEX($C$37:$O$37,,SelectedPeriodColumn) -> 
B33: Tiền lương sau thuế từ một công việc | C33: 450 | D33: 450 | E33: 450 | F33: 450 | G33: 450 | H33: 450 | I33: 450 | J33: 450 | K33: 550 | L33: 350 | M33: 350 | N33: 350 | O33: 5200 | P33: =INDEX($C33:$O33,,SelectedPeriodColumn)/INDEX($C$37:$O$37,,SelectedPeriodColumn) -> 
B34: Trợ giúp tài chính từ gia đình | C34: 200 | D34: 200 | E34: 1,000 | F34: 350 | G34: 350 | H34: 350 | I34: 350 | J34: 350 | K34: 350 | L34: 350 | M34: 350 | N34: 350 | O34: 4550 | P34: =INDEX($C34:$O34,,SelectedPeriodColumn)/INDEX($C$37:$O$37,,SelectedPeriodColumn) -> 
B35: Tiền rút từ tài khoản tiết kiệm | C35: 500 | D35: 350 | E35: 150 | F35: 0 | G35: 0 | H35: 0 | I35: 0 | J35: 0 | K35: 0 | L35: 0 | M35: 0 | N35: 0 | O35: 1000 | P35: =INDEX($C35:$O35,,SelectedPeriodColumn)/INDEX($C$37:$O$37,,SelectedPeriodColumn) -> 
B36: Khác (hỗ trợ trẻ em, hỗ trợ công cộng, quà tặng, vv) | C36: 75 | D36: 75 | E36: 75 | F36: 75 | G36: 75 | H36: 75 | I36: 75 | J36: 75 | K36: 75 | L36: 75 | M36: 75 | N36: 75 | O36: 900 | P36: =INDEX($C36:$O36,,SelectedPeriodColumn)/INDEX($C$37:$O$37,,SelectedPeriodColumn) -> 
A37: Nhãn Tổng thu nhập nằm trong ô bên phải. Tổng thu nhập cho mỗi tháng sẽ được tự động tính toán trong các ô từ C37 tới N37, thu nhập hàng năm nằm trong ô O37 và phần trăm tăng nằm trong ô P37. Biểu đồ thu nhỏ được tự động cập nhật trong ô Q37. Hướng dẫn tiếp theo nằm trong ô A39. | B37: TỔNG THU NHẬP | C37: =SUM(C32:C36) -> 1225 | D37: 1075 | E37: 2425 | F37: 1625 | G37: 1625 | H37: 1625 | I37: 1625 | J37: 1625 | K37: 1725 | L37: 1525 | M37: 1525 | N37: 1525 | O37: 19150 | P37: =INDEX($C37:$O37,,SelectedPeriodColumn)/INDEX($C$37:$O$37,,SelectedPeriodColumn) -> 
A39: Nhãn chi phí hàng tháng nằm trong ô bên phải, tháng trong các ô từ C39 đến N39, Năm nằm trong ô O39 và nhãn phần trăm tăng nằm trong ô P39. | B39: CHI PHÍ HÀNG THÁNG | C39: =FirstMonth ->  | D39: =NextMonth ->  | O39: NĂM | P39: % INC
A40: Nhập hoặc sửa đổi các mục chi phí trong ô ở bên phải và số tiền hàng tháng nằm trong các ô từ C40 đến N43. Số tiền hàng năm sẽ được tự động tính toán trong các ô từ O40 tới O43 và phần trăm tăng nằm trong các ô từ P40 đến P43. Biểu đồ thu nhỏ được tự động cập nhật trong ô Q40. Hướng dẫn tiếp theo nằm trong ô A45. | B40: Phòng & bảng thảo luận | C40: =SUM(C41:C43) -> 565 | D40: 565 | E40: 565 | F40: 565 | G40: 565 | H40: 565 | I40: 565 | J40: 565 | K40: 565 | L40: 565 | M40: 565 | N40: 565 | O40: =SUM(C40:N40) -> 6,780 | P40: =INDEX($C40:$O40,,SelectedPeriodColumn)/INDEX($C$72:$O$72,,SelectedPeriodColumn) -> 
C41: 315 | D41: 315 | E41: 315 | F41: 315 | G41: 315 | H41: 315 | I41: 315 | J41: 315 | K41: 315 | L41: 315 | M41: 315 | N41: 315 | O41: =SUM(C41:N41) -> 3,780 | P41: =INDEX($C41:$O41,,SelectedPeriodColumn)/INDEX($C$72:$O$72,,SelectedPeriodColumn) -> 
C42: 200 | D42: 200 | E42: 200 | F42: 200 | G42: 200 | H42: 200 | I42: 200 | J42: 200 | K42: 200 | L42: 200 | M42: 200 | N42: 200 | O42: =SUM(C42:N42) -> 2,400 | P42: =INDEX($C42:$O42,,SelectedPeriodColumn)/INDEX($C$72:$O$72,,SelectedPeriodColumn) -> 
C43: 50 | D43: 50 | E43: 50 | F43: 50 | G43: 50 | H43: 50 | I43: 50 | J43: 50 | K43: 50 | L43: 50 | M43: 50 | N43: 50 | O43: =SUM(C43:N43) -> 600 | P43: =INDEX($C43:$O43,,SelectedPeriodColumn)/INDEX($C$72:$O$72,,SelectedPeriodColumn) -> 
A45: Nhập hoặc sửa đổi các mục chi phí trong ô ở bên phải và số tiền hàng tháng nằm trong các ô từ C46 đến N48. Số tiền hàng năm sẽ được tự động tính toán trong các ô từ O46 tới O48 và phần trăm tăng nằm trong các ô từ P46 đến P48. Biểu đồ thu nhỏ được tự động cập nhật trong ô Q46. Hướng dẫn tiếp theo nằm trong ô A50. | B45: Học phí & phí | C45: =SUM(C46:C47) -> 0 | D45: 0 | E45: 750 | F45: 0 | G45: 0 | H45: 650 | I45: 0 | J45: 0 | K45: 650 | L45: 0 | M45: 0 | N45: 0 | O45: =SUM(C45:N45) -> 2,050 | P45: =INDEX($C45:$O45,,SelectedPeriodColumn)/INDEX($C$72:$O$72,,SelectedPeriodColumn) -> 
C46: 0 | D46: 0 | E46: 500 | F46: 0 | G46: 0 | H46: 500 | I46: 0 | J46: 0 | K46: 500 | L46: 0 | M46: 0 | N46: 0 | O46: =SUM(C46:N46) -> 1,500 | P46: =INDEX($C46:$O46,,SelectedPeriodColumn)/INDEX($C$72:$O$72,,SelectedPeriodColumn) -> 
C47: 0 | D47: 0 | E47: 250 | F47: 0 | G47: 0 | H47: 150 | I47: 0 | J47: 0 | K47: 150 | L47: 0 | M47: 0 | N47: 0 | O47: =SUM(C47:N47) -> 550 | P47: =INDEX($C47:$O47,,SelectedPeriodColumn)/INDEX($C$72:$O$72,,SelectedPeriodColumn) -> 
A49: Nhập hoặc sửa đổi các mục chi phí trong ô ở bên phải và số tiền hàng tháng nằm trong các ô từ C49 đến N51. Số tiền hàng năm sẽ được tự động tính toán trong các ô từ O49 tới O51 và phần trăm tăng nằm trong các ô từ P49 đến P51. Biểu đồ thu nhỏ được tự động cập nhật trong ô Q49. Hướng dẫn tiếp theo nằm trong ô A53. | B49: Sách & dụng cụ học tập | C49: =SUM(C50:C51) -> 0 | D49: 0 | E49: 325 | F49: 20 | G49: 20 | H49: 325 | I49: 10 | J49: 10 | K49: 400 | L49: 15 | M49: 15 | N49: 15 | O49: =SUM(C49:N49) -> 1,155 | P49: =INDEX($C49:$O49,,SelectedPeriodColumn)/INDEX($C$72:$O$72,,SelectedPeriodColumn) -> 
C50: 0 | D50: 0 | E50: 225 | F50: 0 | G50: 0 | H50: 275 | I50: 0 | J50: 0 | K50: 325 | L50: 0 | M50: 0 | N50: 0 | O50: =SUM(C50:N50) -> 825 | P50: =INDEX($C50:$O50,,SelectedPeriodColumn)/INDEX($C$72:$O$72,,SelectedPeriodColumn) -> 
C51: 0 | D51: 0 | E51: 100 | F51: 20 | G51: 20 | H51: 50 | I51: 10 | J51: 10 | K51: 75 | L51: 15 | M51: 15 | N51: 15 | O51: =SUM(C51:N51) -> 330 | P51: =INDEX($C51:$O51,,SelectedPeriodColumn)/INDEX($C$72:$O$72,,SelectedPeriodColumn) -> 
A53: Nhập hoặc sửa đổi các mục chi phí trong ô ở bên phải và số tiền hàng tháng nằm trong các ô từ C53 đến N57. Số tiền hàng năm sẽ được tự động tính toán trong các ô từ O53 tới O57 và phần trăm tăng nằm trong các ô từ P53 đến P57. Biểu đồ thu nhỏ được tự động cập nhật trong ô Q53. Hướng dẫn tiếp theo nằm trong ô A59. | B53: Đi lại | C53: =SUM(C54:C57) -> 224 | D53: 174 | E53: 174 | F53: 219 | G53: 174 | H53: 174 | I53: 274 | J53: 219 | K53: 174 | L53: 174 | M53: 224 | N53: 269 | O53: =SUM(C53:N53) -> 2,473 | P53: =INDEX($C53:$O53,,SelectedPeriodColumn)/INDEX($C$72:$O$72,,SelectedPeriodColumn) -> 
C54: 30 | D54: 30 | E54: 30 | F54: 75 | G54: 30 | H54: 30 | I54: 30 | J54: 75 | K54: 30 | L54: 30 | M54: 30 | N54: 75 | O54: =SUM(C54:N54) -> 495 | P54: =INDEX($C54:$O54,,SelectedPeriodColumn)/INDEX($C$72:$O$72,,SelectedPeriodColumn) -> 
C55: 129 | D55: 129 | E55: 129 | F55: 129 | G55: 129 | H55: 129 | I55: 129 | J55: 129 | K55: 129 | L55: 129 | M55: 129 | N55: 129 | O55: =SUM(C55:N55) -> 1,548 | P55: =INDEX($C55:$O55,,SelectedPeriodColumn)/INDEX($C$72:$O$72,,SelectedPeriodColumn) -> 
C56: 15 | D56: 15 | E56: 15 | F56: 15 | G56: 15 | H56: 15 | I56: 15 | J56: 15 | K56: 15 | L56: 15 | M56: 15 | N56: 15 | O56: =SUM(C56:N56) -> 180 | P56: =INDEX($C56:$O56,,SelectedPeriodColumn)/INDEX($C$72:$O$72,,SelectedPeriodColumn) -> 
C57: 50 | D57: 0 | E57: 0 | F57: 0 | G57: 0 | H57: 0 | I57: 100 | J57: 0 | K57: 0 | L57: 0 | M57: 50 | N57: 50 | O57: =SUM(C57:N57) -> 250 | P57: =INDEX($C57:$O57,,SelectedPeriodColumn)/INDEX($C$72:$O$72,,SelectedPeriodColumn) -> 
A59: Nhập hoặc sửa đổi các mục chi phí trong ô ở bên phải và số tiền hàng tháng nằm trong các ô từ C59 đến N65. Số tiền hàng năm sẽ được tự động tính toán trong các ô từ O59 tới O66 và phần trăm tăng nằm trong các ô từ P59 đến P65. Biểu đồ thu nhỏ được tự động cập nhật trong ô Q59. Hướng dẫn tiếp theo nằm trong ô A67. | B59: Tự do | C59: =SUM(C60:C65) -> 69 | D59: 69 | E59: 169 | F59: 369 | G59: 419 | H59: 444 | I59: 419 | J59: 419 | K59: 394 | L59: 394 | M59: 419 | N59: 469 | O59: =SUM(C59:N59) -> 4,053 | P59: =INDEX($C59:$O59,,SelectedPeriodColumn)/INDEX($C$72:$O$72,,SelectedPeriodColumn) -> 
C60: 0 | D60: 0 | E60: 0 | F60: 50 | G60: 100 | H60: 100 | I60: 100 | J60: 100 | K60: 75 | L60: 75 | M60: 100 | N60: 100 | O60: 800 | P60: =INDEX($C60:$O60,,SelectedPeriodColumn)/INDEX($C$72:$O$72,,SelectedPeriodColumn) -> 
C61: 69 | D61: 69 | E61: 69 | F61: 69 | G61: 69 | H61: 69 | I61: 69 | J61: 69 | K61: 69 | L61: 69 | M61: 69 | N61: 69 | O61: 828 | P61: =INDEX($C61:$O61,,SelectedPeriodColumn)/INDEX($C$72:$O$72,,SelectedPeriodColumn) -> 
C62: 0 | D62: 0 | E62: 0 | F62: 0 | G62: 0 | H62: 25 | I62: 0 | J62: 0 | K62: 0 | L62: 0 | M62: 0 | N62: 50 | O62: 75 | P62: =INDEX($C62:$O62,,SelectedPeriodColumn)/INDEX($C$72:$O$72,,SelectedPeriodColumn) -> 
C63: 0 | D63: 0 | E63: 100 | F63: 100 | G63: 100 | H63: 100 | I63: 100 | J63: 100 | K63: 100 | L63: 100 | M63: 100 | N63: 100 | O63: 1,000 | P63: =INDEX($C63:$O63,,SelectedPeriodColumn)/INDEX($C$72:$O$72,,SelectedPeriodColumn) -> 
C64: 0 | D64: 0 | E64: 0 | F64: 50 | G64: 50 | H64: 50 | I64: 50 | J64: 50 | K64: 50 | L64: 50 | M64: 50 | N64: 50 | O64: 450 | P64: =INDEX($C64:$O64,,SelectedPeriodColumn)/INDEX($C$72:$O$72,,SelectedPeriodColumn) -> 
C65: 0 | D65: 0 | E65: 0 | F65: 100 | G65: 100 | H65: 100 | I65: 100 | J65: 100 | K65: 100 | L65: 100 | M65: 100 | N65: 100 | O65: 900 | P65: =INDEX($C65:$O65,,SelectedPeriodColumn)/INDEX($C$72:$O$72,,SelectedPeriodColumn) -> 
A67: Nhập hoặc sửa đổi các mục chi phí trong ô ở bên phải và số tiền hàng tháng nằm trong các ô từ C67 đến N70. Số tiền hàng năm sẽ được tự động tính toán trong các ô từ O67 tới O70 và phần trăm tăng nằm trong các ô từ P67 đến P70. Biểu đồ thu nhỏ được tự động cập nhật trong ô Q67. Hướng dẫn tiếp theo nằm trong ô A72. | B67: Chi phí khác | C67: =SUM(C68:C70) -> 198 | D67: =SUM(D68:D70) -> 198 | E67: 250 | F67: 253 | G67: 243 | H67: 238 | I67: 233 | J67: 258 | K67: 263 | L67: 268 | M67: 268 | N67: 268 | O67: =SUM(C67:N67) -> 2,938 | P67: =INDEX($C67:$O67,,SelectedPeriodColumn)/INDEX($C$72:$O$72,,SelectedPeriodColumn) -> 
C68: 123 | D68: 123 | E68: 123 | F68: 123 | G68: 123 | H68: 123 | I68: 123 | J68: 123 | K68: 123 | L68: 123 | M68: 123 | N68: 123 | O68: =SUM(C68:N68) -> 1,476 | P68: =INDEX($C68:$O68,,SelectedPeriodColumn)/INDEX($C$72:$O$72,,SelectedPeriodColumn) -> 
C69: 0 | D69: 0 | E69: 52 | F69: 55 | G69: 45 | H69: 40 | I69: 35 | J69: 60 | K69: 65 | L69: 70 | M69: 70 | N69: 70 | O69: =SUM(C69:N69) -> 562 | P69: =INDEX($C69:$O69,,SelectedPeriodColumn)/INDEX($C$72:$O$72,,SelectedPeriodColumn) -> 
C70: 75 | D70: 75 | E70: 75 | F70: 75 | G70: 75 | H70: 75 | I70: 75 | J70: 75 | K70: 75 | L70: 75 | M70: 75 | N70: 75 | O70: =SUM(C70:N70) -> 900 | P70: =INDEX($C70:$O70,,SelectedPeriodColumn)/INDEX($C$72:$O$72,,SelectedPeriodColumn) -> 
A72: Nhãn Tổng chi phí nằm trong ô bên phải. Tổng chi phí mỗi tháng sẽ được tự động tính toán trong các ô từ C72 đến N72, chi phí hàng năm nằm trong ô O72 và phần trăm tăng nằm trong ô P72. Biểu đồ thu nhỏ được tự động cập nhật trong ô Q72. | B72: TỔNG CHI PHÍ | C72: =SUM(C40,C45,C49,C53,C59,C67) -> 1,056 | D72: 1,006 | E72: 2,233 | F72: 1,426 | G72: 1,421 | H72: 2,396 | I72: 1,501 | J72: 1,471 | K72: 2,446 | L72: 1,416 | M72: 1,491 | N72: 1,586 | O72: =SUM(C72:N72) -> 19,449 | P72: =INDEX($C72:$O72,,SelectedPeriodColumn)/INDEX($C$72:$O$72,,SelectedPeriodColumn) -> 

Sheet chart_calcs (hidden)
A1: ***Trang tính này sẽ vẫn bị ẨN***
D3: =IFERROR(LOWER(TEXT(VALUE("1"&SelectedPeriod&YEAR(TODAY())),"mmmm")),"năm") -> năm
D5: Tiêu đề Biểu đồ động
D6: ="thu nhập "&D3&":" -> thu nhập năm: | F6: =TEXT(INDEX('Ngân sách đại học hàng tháng'!$C$37:$O$37,,SelectedPeriodColumn),"#.##0 ₫") -> 
D7: ="chi phí "&D3&":" -> chi phí năm: | F7: =TEXT(INDEX('Ngân sách đại học hàng tháng'!$C$72:$O$72,,SelectedPeriodColumn),"#.##0 ₫") -> 
D8: ="dòng tiền "&D3&":" -> dòng tiền năm: | E8: =INDEX('Ngân sách đại học hàng tháng'!C28:O28,ScrollBarValue) -> 169 | F8: =TEXT(E8,"#.##0 ₫") -> 169.0 ₫
D12: =LOWER('Ngân sách đại học hàng tháng'!C27) ->  | E12: =LOWER('Ngân sách đại học hàng tháng'!D27) ->  | F12: =LOWER('Ngân sách đại học hàng tháng'!E27) ->  | G12: =LOWER('Ngân sách đại học hàng tháng'!F27) ->  | H12: =LOWER('Ngân sách đại học hàng tháng'!G27) ->  | I12: =LOWER('Ngân sách đại học hàng tháng'!H27) ->  | J12: =LOWER('Ngân sách đại học hàng tháng'!I27) ->  | K12: =LOWER('Ngân sách đại học hàng tháng'!J27) ->  | L12: =LOWER('Ngân sách đại học hàng tháng'!K27) ->  | M12: =LOWER('Ngân sách đại học hàng tháng'!L27) ->  | N12: =LOWER('Ngân sách đại học hàng tháng'!M27) ->  | O12: =LOWER('Ngân sách đại học hàng tháng'!N27) ->  | P12: =LOWER('Ngân sách đại học hàng tháng'!O27) -> năm
C13: Giá trị thanh cuộn: | D13: 1
C14: Biểu đồ dòng tiền: | D14: =IF(SelectedPeriod='Ngân sách đại học hàng tháng'!C$31,IF('Ngân sách đại học hàng tháng'!$C$28:$O$28>=0,'Ngân sách đại học hàng tháng'!$C$28:$O$28,NA()),NA()) ->  | E14: =IF(SelectedPeriod='Ngân sách đại học hàng tháng'!D$31,IF('Ngân sách đại học hàng tháng'!$C$28:$O$28>=0,'Ngân sách đại học hàng tháng'!$C$28:$O$28,NA()),NA()) ->  | F14: =IF(SelectedPeriod='Ngân sách đại học hàng tháng'!E$31,IF('Ngân sách đại học hàng tháng'!$C$28:$O$28>=0,'Ngân sách đại học hàng tháng'!$C$28:$O$28,NA()),NA()) ->  | G14: =IF(SelectedPeriod='Ngân sách đại học hàng tháng'!F$31,IF('Ngân sách đại học hàng tháng'!$C$28:$O$28>=0,'Ngân sách đại học hàng tháng'!$C$28:$O$28,NA()),NA()) ->  | H14: =IF(SelectedPeriod='Ngân sách đại học hàng tháng'!G$31,IF('Ngân sách đại học hàng tháng'!$C$28:$O$28>=0,'Ngân sách đại học hàng tháng'!$C$28:$O$28,NA()),NA()) ->  | I14: =IF(SelectedPeriod='Ngân sách đại học hàng tháng'!H$31,IF('Ngân sách đại học hàng tháng'!$C$28:$O$28>=0,'Ngân sách đại học hàng tháng'!$C$28:$O$28,NA()),NA()) ->  | J14: =IF(SelectedPeriod='Ngân sách đại học hàng tháng'!I$31,IF('Ngân sách đại học hàng tháng'!$C$28:$O$28>=0,'Ngân sách đại học hàng tháng'!$C$28:$O$28,NA()),NA()) ->  | K14: =IF(SelectedPeriod='Ngân sách đại học hàng tháng'!J$31,IF('Ngân sách đại học hàng tháng'!$C$28:$O$28>=0,'Ngân sách đại học hàng tháng'!$C$28:$O$28,NA()),NA()) ->  | L14: =IF(SelectedPeriod='Ngân sách đại học hàng tháng'!K$31,IF('Ngân sách đại học hàng tháng'!$C$28:$O$28>=0,'Ngân sách đại học hàng tháng'!$C$28:$O$28,NA()),NA()) ->  | M14: =IF(SelectedPeriod='Ngân sách đại học hàng tháng'!L$31,IF('Ngân sách đại học hàng tháng'!$C$28:$O$28>=0,'Ngân sách đại học hàng tháng'!$C$28:$O$28,NA()),NA()) ->  | N14: =IF(SelectedPeriod='Ngân sách đại học hàng tháng'!M$31,IF('Ngân sách đại học hàng tháng'!$C$28:$O$28>=0,'Ngân sách đại học hàng tháng'!$C$28:$O$28,NA()),NA()) ->  | O14: =IF(SelectedPeriod='Ngân sách đại học hàng tháng'!N$31,IF('Ngân sách đại học hàng tháng'!$C$28:$O$28>=0,'Ngân sách đại học hàng tháng'!$C$28:$O$28,NA()),NA()) ->  | P14: =IF(SelectedPeriod='Ngân sách đại học hàng tháng'!O$31,IF('Ngân sách đại học hàng tháng'!$C$28:$O$28>=0,'Ngân sách đại học hàng tháng'!$C$28:$O$28,NA()),NA()) -> 
C15: Tích lũy: | D15: =IF(SelectedPeriod='Ngân sách đại học hàng tháng'!C$31,IF('Ngân sách đại học hàng tháng'!$C$28:$O$28<0,'Ngân sách đại học hàng tháng'!$C$28:$O$28,NA()),NA()) ->  | E15: =IF(SelectedPeriod='Ngân sách đại học hàng tháng'!D$31,IF('Ngân sách đại học hàng tháng'!$C$28:$O$28<0,'Ngân sách đại học hàng tháng'!$C$28:$O$28,NA()),NA()) ->  | F15: =IF(SelectedPeriod='Ngân sách đại học hàng tháng'!E$31,IF('Ngân sách đại học hàng tháng'!$C$28:$O$28<0,'Ngân sách đại học hàng tháng'!$C$28:$O$28,NA()),NA()) ->  | G15: =IF(SelectedPeriod='Ngân sách đại học hàng tháng'!F$31,IF('Ngân sách đại học hàng tháng'!$C$28:$O$28<0,'Ngân sách đại học hàng tháng'!$C$28:$O$28,NA()),NA()) ->  | H15: =IF(SelectedPeriod='Ngân sách đại học hàng tháng'!G$31,IF('Ngân sách đại học hàng tháng'!$C$28:$O$28<0,'Ngân sách đại học hàng tháng'!$C$28:$O$28,NA()),NA()) ->  | I15: =IF(SelectedPeriod='Ngân sách đại học hàng tháng'!H$31,IF('Ngân sách đại học hàng tháng'!$C$28:$O$28<0,'Ngân sách đại học hàng tháng'!$C$28:$O$28,NA()),NA()) ->  | J15: =IF(SelectedPeriod='Ngân sách đại học hàng tháng'!I$31,IF('Ngân sách đại học hàng tháng'!$C$28:$O$28<0,'Ngân sách đại học hàng tháng'!$C$28:$O$28,NA()),NA()) ->  | K15: =IF(SelectedPeriod='Ngân sách đại học hàng tháng'!J$31,IF('Ngân sách đại học hàng tháng'!$C$28:$O$28<0,'Ngân sách đại học hàng tháng'!$C$28:$O$28,NA()),NA()) ->  | L15: =IF(SelectedPeriod='Ngân sách đại học hàng tháng'!K$31,IF('Ngân sách đại học hàng tháng'!$C$28:$O$28<0,'Ngân sách đại học hàng tháng'!$C$28:$O$28,NA()),NA()) ->  | M15: =IF(SelectedPeriod='Ngân sách đại học hàng tháng'!L$31,IF('Ngân sách đại học hàng tháng'!$C$28:$O$28<0,'Ngân sách đại học hàng tháng'!$C$28:$O$28,NA()),NA()) ->  | N15: =IF(SelectedPeriod='Ngân sách đại học hàng tháng'!M$31,IF('Ngân sách đại học hàng tháng'!$C$28:$O$28<0,'Ngân sách đại học hàng tháng'!$C$28:$O$28,NA()),NA()) ->  | O15: =IF(SelectedPeriod='Ngân sách đại học hàng tháng'!N$31,IF('Ngân sách đại học hàng tháng'!$C$28:$O$28<0,'Ngân sách đại học hàng tháng'!$C$28:$O$28,NA()),NA()) ->  | P15: =IF(SelectedPeriod='Ngân sách đại học hàng tháng'!O$31,IF('Ngân sách đại học hàng tháng'!$C$28:$O$28<0,'Ngân sách đại học hàng tháng'!$C$28:$O$28,NA()),NA()) -> 
C18: DỮ LIỆU DỮ LIỆU THU NHẬP
C19: Hỗ trợ tài chính (tài trợ, học bổng, cho vay) trả cho bạn | D19: ='Ngân sách đại học hàng tháng'!P32 -> 
C20: Tiền lương sau thuế từ một công việc | D20: ='Ngân sách đại học hàng tháng'!P33 -> 
C21: Trợ giúp tài chính từ gia đình | D21: ='Ngân sách đại học hàng tháng'!P34 -> 
C22: Tiền rút từ tài khoản tiết kiệm | D22: ='Ngân sách đại học hàng tháng'!P35 -> 
C23: Khác (hỗ trợ trẻ em, hỗ trợ công cộng, quà tặng, vv) | D23: ='Ngân sách đại học hàng tháng'!P36 -> 
